[Event "Silves Open 2025"]
[Site "Fissul"]
[Date "2025.03.07"]
[Round "9.18"]
[White "Silva, Ana Ines Teixeira Da"]
[Black "Kuegel, Tobias"]
[Result "0-1"]
[Annotator "TA"]
[ECO "B13"]
[WhiteElo "1901"]
[BlackElo "2423"]
[PlyCount "94"]
[EventDate "2025.03.03"]
[EventType "swiss"]
[EventCountry "POR"]
[SourceTitle "playchess.com"]
[Source "ChessBase"]
[SourceQuality "1"]
[TimeControl "5400+30"]

{[%evp 14,94,18,18,25,18,23,13,29,13,24,0,0,3,0,-36,6,-6,0,-28,0,-18,-6,-18,-2,-11,0,-27,-6,-32,-24,-31,-24,-238,-237,-242,-226,-318,-333,-385,-382,-379,-383,-402,-402,-397,-399,-403,-407,-402,-404,-379,-374,-409,-392,-369,-322,-384,-394,-485,-484,-464,-461,-494,-492,-975,-970,-928,-919,-1420,-1479,-1829,-1912,-2063,-2151,-29980,-29980,-29980,-29981,-29982,-29983,-29983,-29984]} 1. e4 {[%emt 0:06:20]} c6 {[%emt 0:00:02]} 2. d4 {[%emt 0:00:10]} d5 {[%emt 0:00:01]} 3. exd5 {[%emt 0:00:12]} cxd5 {[%emt 0:00:02]} 4. Bd3 {[%emt 0:00:23]} Nc6 {[%emt 0:00:01]} 5. c3 {[%emt 0:00:20]} Nf6 {[%emt 0:00:02]} 6. h3 {[%emt 0:00:33]} e5 {[%emt 0:00:02]} 7. dxe5 {[%emt 0:00:26]} Nxe5 {[%emt 0:00:02]} 8. Nf3 {[%emt 0:03:42]} Nxd3+ {[%emt 0:00:02] B13: Caro-Kann: Exchange Variation and Panov-Botvinnik Attack.} 9. Qxd3 {[%emt 0:00:07]} Bd6 $1 {[%emt 0:00:02] 9...Bd6 scores better than 9...Be7.} 10. O-O {[%emt 0:01:30]} O-O {[%emt 0:00:03] The position is equal.} 11. Be3 {[%emt 0:09:30]} Re8 {[%emt 0:00:02]} 12. Nbd2 {[%emt 0:05:31]} h6 {[%emt 0:00:07]} 13. Rfe1 {[%emt 0:01:40]} Ne4 {[%emt 0:00:33]} 14. Nd4 {[%emt 0:07:18]} (14. Qxd5 $2 Bh2+ 15. Kxh2 Qxd5 $19) 14... a6 {[%emt 0:05:12]} 15. Rad1 {[%emt 0:05:16]} Bd7 {[%emt 0:01:41]} 16. N2b3 $146 {[%emt 0:20:41]} (16. N4b3 Nf6 17. Bd4 Rxe1+ 18. Rxe1 Bc6 19. Qf5 Ne4 20. Nxe4 dxe4 21. Nc5 g6 22. Qg4 h5 {0-1 Bernotas,A (2366)-Sargsyan,S (2637) Titled Tuesday intern op 27th Feb Late blitz 2024 (2)}) 16... Qc7 {[%emt 0:05:10]} 17. Ne2 {[%emt 0:08:21]} Rad8 {[%emt 0:03:19]} 18. Nbd4 {[%emt 0:04:08] Prevents Bf5} Ba4 {[%emt 0:03:58]} 19. Rc1 {[%emt 0:03:21]} Bd7 {[%emt 0:00:15]} 20. Red1 {[%emt 0:11:03]} b5 {[%emt 0:04:13]} 21. a3 {[%emt 0:02:42]} Bh2+ {[%emt 0:05:01] A strong pair of Bishops.} 22. Kh1 {[%emt 0:02:15]} Be5 {[%emt 0:00:04]} 23. Nf3 $2 {[%emt 0:00:45] [#] This move loses the game for White.} (23. Kg1 $11 {and White has nothing to worry.}) 23... Bf5 $1 $19 {[%emt 0:00:14][%cal Oe4f2] and ...Nxf2+! should not be overlooked} 24. Kg1 {[%emt 0:02:07]} Bh7 {[%emt 0:15:45][%cal Oe4f2]} 25. Nxe5 {[%emt 0:01:22]} (25. Re1 {might work better.} Nxf2 26. Qd2) 25... Nxf2 {[%emt 0:00:01]} 26. Qd4 {[%emt 0:01:35]} (26. Kxf2 Bxd3 27. Nxd3 Qe7) 26... Nxd1 {[%emt 0:00:09]} (26... Rxe5 27. Bf4 (27. Kxf2 Rde8 $17) 27... Nxd1 28. Bxe5 $16) 27. Rxd1 {[%emt 0:01:17]} Qxe5 {[%emt 0:00:10]} 28. Qxe5 {[%emt 0:00:53]} Rxe5 {[%emt 0:00:01]} 29. Bb6 {[%emt 0:00:08]} Rde8 {[%emt 0:01:33]} 30. Nf4 {[%emt 0:01:06]} Re1+ {[%emt 0:00:04]} 31. Rxe1 {[%emt 0:00:03]} Rxe1+ {[%emt 0:00:04][%mdl 4096] Endgame KRB-KBN} 32. Kf2 {[%emt 0:00:04]} Rb1 {[%emt 0:00:04]} 33. Nxd5 {[%emt 0:00:23]} Rxb2+ {[%emt 0:00:04]} 34. Kf3 {[%emt 0:00:07]} Rd2 {[%emt 0:00:58]} 35. Nb4 {[%emt 0:00:57]} Rd6 {[%emt 0:01:38]} 36. Bc5 {[%emt 0:00:47]} Re6 {[%emt 0:00:14]} 37. Kf2 {[%emt 0:01:07]} Be4 {[%emt 0:00:11]} ({Not} 37... a5 38. Nd5) 38. Na2 {[%emt 0:00:36]} Bxg2 {[%emt 0:00:20]} 39. Kxg2 {[%emt 0:00:28]} (39. h4 $142) 39... Re2+ {[%emt 0:00:02]} 40. Kf3 {[%emt 0:00:12]} Rxa2 {[%emt 0:00:05] KR-KB} 41. Ke4 {[%emt 0:00:11]} Rh2 {[%emt 0:00:46]} 42. Kd5 {[%emt 0:00:15]} Rxh3 {[%emt 0:00:03]} 43. Bb4 {[%emt 0:00:32]} g5 {[%emt 0:00:01]} 44. Kc6 {[%emt 0:00:16]} g4 {[%emt 0:00:05] Black mates.} 45. Kb6 {[%emt 0:00:07]} g3 {[%emt 0:00:05]} 46. Kxa6 {[%emt 0:00:14]} g2 {[%emt 0:00:03]} 47. Bc5 {[%emt 0:00:06]} Rxc3 {[%emt 0:00:04] Weighted Error Value: White=0.69/Black=0.07 (flawless)   Loses game:     	White=1     	---        Mistake:       	White=2     	---        Inaccurate:     	White=4     	Black=2      OK:         	White=10    	Black=13     Best:        	White=2     	Black=2      Strong:       	---       	Black=1} 0-1

[Event "Silves Open 2025"]
[Site "Fissul"]
[Date "2025.03.07"]
[Round "9.19"]
[White "Nguyen, Anh Khoi"]
[Black "Ryabukhina, Veronika"]
[Result "1-0"]
[Annotator "TA"]
[ECO "E01"]
[WhiteElo "2520"]
[BlackElo "1880"]
[PlyCount "43"]
[EventDate "2025.03.03"]
[EventType "swiss"]
[EventCountry "POR"]
[SourceTitle "playchess.com"]
[Source "ChessBase"]
[SourceQuality "1"]
[TimeControl "5400+30"]

{[%evp 22,43,40,25,23,14,30,32,178,179,162,155,150,162,142,92,622,633,615,607,747,749,814,795]} 1. c4 {[%emt 1:31:00]} e6 {[%emt 1:31:00]} 2. g3 {[%emt 0:00:30]} d5 {[%emt 0:00:30]} 3. Bg2 {[%emt 0:00:30]} Nf6 {[%emt 0:00:30]} 4. Nf3 {[%emt 0:00:30]} c6 {[%emt 0:00:30]} 5. d4 {[%emt 0:00:30]} Bd6 {[%emt 0:00:30]} 6. O-O {[%emt 0:00:30]} O-O {[%emt 0:00:30]} 7. Qc2 {[%emt 0:00:30]} b6 {[%emt 0:00:30]} 8. Nbd2 {[%emt 0:00:30]} Bb7 {[%emt 0:00:30]} 9. e4 {[%emt 0:00:30]} dxe4 {[%emt 0:00:30]} 10. Nxe4 {[%emt 0:00:30]} Nxe4 {[%emt 0:00:30]} 11. Qxe4 {[%emt 0:00:30]} Nd7 {[%emt 0:00:30][%cal Bb8d7,Bd7f8,Bf8g6][%mdl 32]} 12. Rd1 $1 {[%emt 0:00:30][%cal Bf1d1,Bd1e1,Be1e5][%mdl 32] 12.Rd1 scores better than 12.Ne5.} Qc7 {[%emt 0:00:30] E01: Catalan: Early deviations.} 13. Qc2 {[%emt 0:00:30]} Rfe8 {[%emt 0:00:30]} 14. Ng5 {[%emt 0:00:30]} (14. c5 {looks sharper.} bxc5 15. Ng5 g6 16. dxc5 Bxc5 17. b4) 14... f5 $146 {[%emt 0:00:30]} ({Black should try} 14... Nf6 $14) (14... Nf6 15. c5 Bf8 16. Bf4 Qd7 17. Be5 h6 18. Bxf6 hxg5 19. Bxg5 Be7 20. Bxe7 Qxe7 21. cxb6 axb6 {½-½ Kormann,W (2167)-Steininger,F (2060) Steyr Landesliga 1920 2019 (8.5)}) 15. Re1 $18 {[%emt 0:00:30]} Nf8 {[%emt 0:00:30]} 16. c5 {[%emt 0:00:30]} bxc5 {[%emt 0:00:30]} 17. dxc5 {[%emt 0:00:30]} Be5 {[%emt 0:00:30]} 18. Qc4 {[%emt 0:00:30] White is more active.} (18. Nf3 $142 Bf6 19. Bf4) 18... Kh8 $2 {[%emt 0:00:30][%mdl 8192] [#]} (18... a5 $16) 19. Rxe5 $1 {[%emt 0:00:30] White is clearly winning.} h6 {[%emt 0:00:30]} 20. Nf3 {[%emt 0:00:30]} ({Not} 20. Nxe6 Qxe5 21. Nxf8 Qe1+ 22. Bf1 Rxf8 $15) 20... Ng6 {[%emt 0:00:30]} 21. Rxe6 {[%emt 0:00:30]} Rxe6 {[%emt 0:00:30]} 22. Qxe6 {[%emt 0:00:30] Weighted Error Value: White=0.06 (flawless) /Black=1.08  Loses game:     	---       	Black=1      Mistake:       	White=1     	Black=1      OK:         	White=2     	Black=4      Best:        	White=2     	---        Brilliant:      	White=1     	---} 1-0

[Event "Silves Open 2025"]
[Site "Fissul"]
[Date "2025.03.07"]
[Round "9.21"]
[White "Van Ginkel, Henk"]
[Black "Esteves, Goncalo Maria Franco"]
[Result "0-1"]
[Annotator "TA"]
[ECO "A83"]
[WhiteElo "1811"]
[BlackElo "1962"]
[PlyCount "85"]
[EventDate "2025.03.03"]
[EventType "swiss"]
[EventCountry "POR"]
[SourceTitle "playchess.com"]
[Source "ChessBase"]
[SourceQuality "1"]
[TimeControl "5400+30"]

{[%evp 11,85,42,68,13,14,18,27,5,39,25,50,47,47,38,32,37,37,16,33,14,17,0,0,0,0,-13,6,0,0,0,3,-2,0,-49,-36,-97,8,0,39,-41,-46,-75,-40,-46,-50,-89,-22,-118,-65,-143,-10,-176,-162,-257,-254,-263,-241,-474,-464,-495,-515,-604,-576,-950,-607,-541,-519,-933,-933,-1118,-1084,-1416,-1364,-5206,-6101,-4698]} 1. d4 {[%emt 0:00:16]} f5 {[%emt 0:00:55]} 2. Nc3 {[%emt 0:00:16]} Nf6 {[%emt 0:00:16]} 3. Bg5 {[%emt 0:00:22]} e6 {[%emt 0:02:15]} 4. e4 {[%emt 0:00:36]} fxe4 {[%emt 0:00:18]} 5. Nxe4 {[%emt 0:00:19]} Be7 {[%emt 0:00:37]} 6. Bxf6 {[%emt 0:17:11]} Bxf6 {[%emt 0:00:10]} 7. Nxf6+ {[%emt 0:10:41] A83: Dutch Defence: Staunton Gambit with 3 Nc3 Nf6 4 Bg5.} (7. c3 $14) 7... Qxf6 $11 {[%emt 0:00:07]} 8. Bd3 {[%emt 0:02:28]} O-O {[%emt 0:03:01][%csl Gf8][%cal Rf6f2] [#]} 9. Qf3 $146 {[%emt 0:03:00] White has an edge.} (9. Nf3 Nc6 10. c3 d6 11. O-O e5 12. dxe5 Nxe5 13. Nxe5 Qxe5 14. Re1 Qf4 15. Qc2 Bf5 16. Bxf5 Qxf5 17. Qxf5 Rxf5 {1-0 Truskavetsky,A (2348)-Kazmaier,D (2180) Titled Tuesday intern op 12th Mar Late blitz 2024 (8)}) 9... Qh4 {[%emt 0:10:13]} (9... Nc6 {simplifies} 10. Qxf6 Rxf6 11. Ne2 d6) 10. Qe3 {[%emt 0:02:48]} c5 {[%emt 0:04:35]} 11. Nf3 {[%emt 0:06:32]} cxd4 {[%emt 0:03:31]} 12. Qxd4 {[%emt 0:07:46] A sharp opening} (12. Nxd4 {looks sharper.} Nc6 13. Nxc6 bxc6 14. O-O) 12... Qxd4 {[%emt 0:02:24]} 13. Nxd4 {[%emt 0:00:17]} d5 {[%emt 0:00:12]} 14. Nb5 {[%emt 0:09:53]} Nc6 {[%emt 0:01:21]} 15. O-O {[%emt 0:03:21]} a6 {[%emt 0:06:35]} 16. Nd6 {[%emt 0:01:57]} Rd8 {[%emt 0:01:56]} 17. Nxc8 {[%emt 0:00:20]} Raxc8 {[%emt 0:00:04][%cal Ba8c8,Bc8c7,Bc7d7][%mdl 32]} 18. c3 {[%emt 0:03:51]} e5 {[%emt 0:02:18]} 19. Bf5 {[%emt 0:03:00] Hoping for Be6+.} Rc7 {[%emt 0:01:58]} 20. Be6+ {[%emt 0:00:55]} Kf8 {[%emt 0:00:28]} 21. Rad1 {[%emt 0:00:38]} d4 {[%emt 0:03:12]} 22. c4 {[%emt 0:05:08]} (22. cxd4 $11 Rxd4 23. Bf5) 22... g6 $15 {[%emt 0:13:30]} 23. a3 {[%emt 0:01:09] Dodges Nb4} (23. Rfe1 $15) 23... Re8 {[%emt 0:15:16]} (23... Na5 $17 {[%cal Of8e7]} 24. f4 Nxc4 25. fxe5+ Kg7 26. Bxc4 Rxc4) 24. Bd5 $11 {[%emt 0:00:29]} Rd7 {[%emt 0:04:40]} 25. Bxc6 {[%emt 0:04:14]} (25. Rfe1 $14) 25... bxc6 $14 {[%emt 0:00:10][%mdl 4096] Endgame KRR-KRR} 26. f3 {[%emt 0:00:22]} Ke7 {[%emt 0:13:21]} 27. Rfe1 {[%emt 0:00:51]} Kf6 {[%emt 0:00:05]} 28. Kf2 {[%emt 0:02:29]} g5 {[%emt 0:00:37]} (28... Rb8 $17 29. b4 a5 30. bxa5 Ra8) 29. h3 {[%emt 0:01:46] [#]} (29. Re4 $11) 29... Rb8 {[%emt 0:00:33]} (29... a5 $1 $17 30. Rd2 Rb7 31. Rxd4 Rxb2+ (31... exd4 $2 32. Rxe8 Rxb2+ 33. Kf1 $19) 32. Kf1 exd4 33. Rxe8 Rc2) 30. Re2 {[%emt 0:01:38]} ({Better is} 30. b4 $15) 30... Rdb7 {[%emt 0:02:01]} ({Black should play} 30... Rb3 $17 {Strongly threatening ...Rdb7.} 31. Rde1 Re7) 31. Rdd2 $2 {[%emt 0:01:33] White does not recover from this.} (31. b4 $11) 31... Rb3 $19 {[%emt 0:00:33]} 32. g3 {[%emt 0:02:54]} (32. h4 {was called for.} h6 (32... gxh4 33. f4 $17) 33. h5) 32... Kf5 {[%emt 0:00:55]} 33. g4+ {[%emt 0:00:35]} Kf6 {[%emt 0:00:13]} 34. Ke1 $2 {[%emt 0:00:41]} (34. Kg3) 34... Rxf3 {[%emt 0:00:24] Black is clearly winning.} 35. Rf2 {[%emt 0:03:26]} Rbb3 {[%emt 0:00:10]} 36. a4 {[%emt 0:00:10]} Rbe3+ {[%emt 0:00:18]} 37. Rde2 {[%emt 0:01:05]} Rxf2 {[%emt 0:00:34]} 38. Kxf2 {[%emt 0:00:01]} Rxh3 {[%emt 0:00:32] KR-KR. Black is two pawns up.} 39. b4 {[%emt 0:00:26]} (39. Kg2 $142 Rb3 40. Kf2) 39... Rb3 {[%emt 0:00:13]} 40. b5 {[%emt 0:00:27]} axb5 {[%emt 0:00:13]} 41. cxb5 {[%emt 0:00:27]} cxb5 {[%emt 0:00:03]} 42. axb5 {[%emt 0:00:23]} Rxb5 {[%emt 0:00:09]} 43. Kf3 {[%emt 0:00:08] Weighted Error Value: White=0.91/Black=0.41  Loses game:     	White=1     	---        Mistake:       	White=7     	Black=4      Inaccurate:     	White=3     	Black=3      OK:         	White=7     	Black=12     Best:        	White=1     	Black=3} 0-1

[Event "Silves Open 2025"]
[Site "Fissul"]
[Date "2025.03.07"]
[Round "9.24"]
[White "Finkler, Kai Andreas"]
[Black "Crow, Steve"]
[Result "0-1"]
[Annotator "TA"]
[ECO "B01"]
[WhiteElo "1990"]
[BlackElo "1742"]
[PlyCount "151"]
[EventDate "2025.03.03"]
[EventType "swiss"]
[EventCountry "POR"]
[SourceTitle "playchess.com"]
[Source "ChessBase"]
[SourceQuality "1"]
[TimeControl "5400+30"]

{[%evp 15,151,19,13,4,23,-2,19,8,15,-17,32,-20,0,-5,-2,0,9,8,9,-372,-373,-375,-370,-500,-500,-491,-487,-483,-483,-612,-601,-731,-762,-790,-782,-860,-833,-960,-884,-880,-895,-866,-805,-839,-787,-860,-855,-835,-724,-789,-765,-828,-727,-838,-831,-867,-873,-872,-865,-828,-813,-969,-967,-987,-977,-987,-970,-1045,-1039,-29987,-29988,-29987,-29987,-29988,-29988,-29988,-29987,-29987,-29982,-29982,-29983,-29990,-29982,-29982,-29983,-29985,0,-5343,0,-29990,-29989,-29990,-29982,-29983,-29984,-29984,-29984,-29985,-29986,-29987,-29985,-29986,-29983,-29989,-29988,-29991,-29987,-29991,-29988,-29991,-29990,-29990,-29989,-29990,-29988,-29990,-29989,-29989,-29989,-29991,-29989,-29991,-29988,-29985,-29982,-29984,-29985,-29985,-29986,-29990,-29988,-29989,0,-29990,-29991,-29991,-29973,-29995]} 1. e4 {[%emt 0:00:04]} d5 {[%emt 0:00:19]} 2. exd5 {[%emt 0:00:54]} Qxd5 {[%emt 0:00:08]} 3. Nc3 {[%emt 0:00:10]} Qa5 {[%emt 0:00:10]} 4. d4 {[%emt 0:00:38]} Nf6 {[%emt 0:00:09]} 5. Nf3 {[%emt 0:00:25][%cal Bg1f3,Bf3e5,Be5c4][%mdl 32]} c6 {[%emt 0:00:21]} 6. Be2 {[%emt 0:00:24]} Bf5 {[%emt 0:00:22]} 7. O-O {[%emt 0:01:32]} e6 {[%emt 0:00:54]} 8. Ne5 {[%emt 0:02:46]} Nbd7 {[%emt 0:01:11]} 9. Nc4 {[%emt 0:02:15] B01: Scandinavian Defence.} Qc7 {[%emt 0:01:41]} 10. Bg5 {[%emt 0:15:31]} b5 {[%emt 0:09:38]} 11. Ne3 {[%emt 0:00:39] A sharp opening. The position is equal.} Bg6 {[%emt 0:01:02]} 12. Bf3 {[%emt 0:00:50]} a6 $146 {[%emt 0:06:26]} (12... Rd8 $11 {is superior.}) (12... b4 13. Ne2 Bd6 14. Kh1 Ne4 {½-½ Khamrakulov,I (2451)-Jirovsky,M (2452) Tanta op 4th 2001 (8)}) 13. Re1 {[%emt 0:13:49]} (13. d5 $14) 13... Be7 {[%emt 0:06:31]} 14. d5 {[%emt 0:02:07]} Rd8 {[%emt 0:10:36] Black wants to play ...Ne5.} 15. dxe6 {[%emt 0:02:52]} (15. dxc6 Ne5 16. Qe2 Nxc6 17. Bxf6 gxf6 (17... Bxf6 18. Ned5 $14) 18. Bxc6+ Qxc6 $11) 15... Ne5 {[%emt 0:02:20]} 16. exf7+ {[%emt 0:11:20]} Nxf7 {[%emt 0:01:30]} 17. Qe2 {[%emt 0:00:09][%mdl 8192]} (17. Ned5 $11 {and White has nothing to worry.} Nxd5 18. Nxd5 Rxd5 19. Bxd5 Nxg5 20. Bb3) 17... Nxg5 $19 {[%emt 0:02:31]} 18. Bxc6+ {[%emt 0:00:13]} Qxc6 {[%emt 0:00:18]} 19. Ned5 {[%emt 0:00:13]} Nxd5 {[%emt 0:07:49]} 20. Nxd5 {[%emt 0:01:30][%csl Gd5,Ge1][%cal Re2e7] [#]} Ne4 {[%emt 0:05:32]} 21. Nxe7 {[%emt 0:00:35]} Kxe7 {[%emt 0:00:28]} 22. Qg4 {[%emt 0:03:00]} Kf7 {[%emt 0:03:18]} 23. h4 {[%emt 0:04:47]} Nf6 {[%emt 0:06:28]} 24. Qb4 {[%emt 0:03:58]} Rhe8 {[%emt 0:01:45]} (24... Qxc2 $2 {too greedy.} 25. Qe7+ Kg8 26. Qxd8+ Be8 27. Rxe8+ Kf7 28. Re7+ (28. Rxh8 Qc4 $18) 28... Kg6 29. Qxh8 $18) 25. a4 {[%emt 0:00:53]} Qc4 {[%emt 0:05:41]} 26. Qa5 {[%emt 0:00:19]} bxa4 {[%emt 0:00:43]} 27. Rxe8 {[%emt 0:01:18]} Rxe8 {[%emt 0:00:27]} 28. Rxa4 {[%emt 0:00:11]} Qc6 {[%emt 0:04:16]} 29. Ra3 {[%emt 0:03:57]} Nd5 {[%emt 0:06:51]} 30. h5 {[%emt 0:03:33]} Bxc2 {[%emt 0:02:08]} 31. h6 {[%emt 0:00:34]} Qe6 {[%emt 0:02:38]} 32. hxg7 {[%emt 0:01:39]} Qe1+ {[%emt 0:00:40]} 33. Qxe1 {[%emt 0:00:02]} Rxe1+ {[%emt 0:00:09]} 34. Kh2 {[%emt 0:00:04]} Nb4 {[%emt 0:01:21]} 35. Rg3 {[%emt 0:00:44]} Bg6 {[%emt 0:00:47]} 36. Rg4 {[%emt 0:00:19]} Nd3 {[%emt 0:00:54]} 37. Ra4 {[%emt 0:01:47]} Re6 {[%emt 0:00:43]} 38. b4 {[%emt 0:00:12]} Kxg7 {[%emt 0:00:35]} 39. f3 {[%emt 0:00:28]} Be8 {[%emt 0:00:51]} 40. Ra5 {[%emt 0:01:07]} Bb5 {[%emt 0:01:17]} 41. Kg3 {[%emt 0:01:07]} Rg6+ {[%emt 0:00:35]} 42. Kh3 {[%emt 0:00:26]} Nf4+ {[%emt 0:00:34]} 43. Kh2 {[%emt 0:00:27]} Rxg2+ {[%emt 0:00:32]} 44. Kh1 {[%emt 0:00:01]} Rg3 {[%emt 0:00:52]} 45. Ra3 {[%emt 0:00:28]} Be2 {[%emt 0:02:11]} 46. Kh2 {[%emt 0:00:51]} Rh3+ {[%emt 0:01:01]} 47. Kg1 {[%emt 0:00:15]} Rxf3 {[%emt 0:00:52]} 48. Ra2 {[%emt 0:00:29]} Rb3 {[%emt 0:01:17]} 49. Kf2 {[%emt 0:00:19]} Nd3+ {[%emt 0:01:18]} 50. Kg2 {[%emt 0:00:29]} Nf4+ {[%emt 0:01:15]} (50... Rxb4 $142 51. Kg3 Rg4+ 52. Kh2 Bf3 53. Rd2 Ne5 (53... Rh4+ $2 54. Kg3 $19) 54. Ra2 Rg6 (54... Rh4+ $2 55. Kg3 $19) 55. Ra3 Bd5 56. Ra4 Nf3+ 57. Kh3 Be6+ 58. Rg4 Bxg4+ 59. Kg3 a5 (59... Bh5+ {is a self mate.} 60. Kf2 a5 61. Ke3 Rd6 62. Ke4 a4 63. Kf5 a3 64. Ke4 a2 65. Ke3 a1=Q 66. Kf2 Qg1+ 67. Ke2 Nh4#) 60. Kf4 a4 61. Ke3 a3 (61... Re6+ 62. Kd3 a3 63. Kc3 Re3+ 64. Kc4 a2 65. Kd5 a1=Q 66. Kc5 Rc3+ 67. Kb6 Qb2+ 68. Ka7 Ra3#) 62. Ke4 a2 63. Ke3 a1=Q (63... a1=B $2 64. Ke4 $19) 64. Kd3 Qd4+ 65. Kc2 Rb6 66. Kc1 Qd2#) 51. Kf2 $1 {[%emt 0:00:02]} Rf3+ {[%emt 0:00:18]} 52. Kg1 {[%emt 0:01:29]} Rf1+ {[%emt 0:00:23]} 53. Kh2 {[%emt 0:00:05]} Rb1 {[%emt 0:00:11]} 54. Kg3 {[%emt 0:01:15]} Rxb4 {[%emt 0:00:07]} 55. Rd2 {[%emt 0:00:07]} Re4 {[%emt 0:00:35]} 56. Rd7+ {[%emt 0:00:26]} Kg6 {[%emt 0:00:15]} 57. Rd6+ {[%emt 0:00:05]} Re6 {[%emt 0:00:15]} 58. Rd4 {[%emt 0:00:00]} Nh5+ {[%emt 0:00:27]} 59. Kh4 {[%emt 0:00:46]} Rf6 {[%emt 0:00:28]} 60. Kh3 {[%emt 0:00:39]} Rf5 {[%emt 0:00:46]} 61. Rd6+ {[%emt 0:00:43]} Nf6 {[%emt 0:00:13]} 62. Rd2 {[%emt 0:00:11]} Bf1+ {[%emt 0:00:10]} 63. Kh2 {[%emt 0:00:17]} a5 {[%emt 0:00:10]} 64. Ra2 {[%emt 0:00:13]} Ne4 {[%emt 0:00:30]} 65. Ra4 {[%emt 0:00:24]} Re5 {[%emt 0:00:13]} 66. Ra1 {[%emt 0:00:32]} Nd2 {[%emt 0:00:52]} 67. Rd1 {[%emt 0:00:19]} Rd5 {[%emt 0:00:21]} 68. Ra1 {[%emt 0:01:07]} Bc4 {[%emt 0:00:24]} 69. Kg3 {[%emt 0:00:14]} Nb3 {[%emt 0:00:23]} 70. Ra4 {[%emt 0:00:18]} Bb5 {[%emt 0:01:19]} 71. Re4 {[%emt 0:00:45]} a4 {[%emt 0:00:34]} 72. Rb4 {[%emt 0:00:10]} Rd3+ {[%emt 0:00:45]} 73. Kh2 {[%emt 0:00:27]} Rd5 {[%emt 0:00:37]} 74. Kg3 $1 {[%emt 0:00:13] [#]} a3 $1 {[%emt 0:00:29]} 75. Rxb3 {[%emt 0:00:02]} (75. Re4 a2) 75... Rd4 {[%emt 0:05:20]} 76. Rd3 {[%emt 0:25:01] Weighted Error Value: White=0.66/Black=0.15 (very precise)   Loses game:     	White=1     	---        Mistake:       	White=1     	Black=1      Inaccurate:     	White=2     	---        OK:         	White=4     	Black=2      Best:        	White=1     	Black=2} 0-1

[Event "Silves Open 2025"]
[Site "Fissul"]
[Date "2025.03.07"]
[Round "9.26"]
[White "Paiva, Manuel Maria Fonseca"]
[Black "Ribeiro, Margarida"]
[Result "1-0"]
[Annotator "TA"]
[ECO "C56"]
[WhiteElo "1904"]
[BlackElo "1519"]
[PlyCount "27"]
[EventDate "2025.03.03"]
[EventType "swiss"]
[EventCountry "POR"]
[SourceTitle "playchess.com"]
[Source "ChessBase"]
[SourceQuality "1"]
[TimeControl "5400+30"]

{[%evp 11,27,-116,-119,-125,-64,-63,91,76,392,385,372,383,982,960,970,953,1205,1197]} 1. e4 {[%emt 0:00:14][%cal Be2e4,Be4e5][%mdl 32]} e5 {[%emt 0:00:04]} 2. Nf3 {[%emt 0:00:04][%cal Bg1f3,Bf3g5,Bg5h7][%mdl 32]} Nc6 {[%emt 0:00:04]} 3. d4 {[%emt 0:00:05]} exd4 {[%emt 0:00:04]} 4. Bc4 {[%emt 0:00:04]} Nf6 {[%emt 0:01:05]} 5. e5 {[%emt 0:00:06]} Ng4 {[%emt 0:01:05]} 6. Bxf7+ {[%emt 0:01:57]} Kxf7 {[%emt 0:02:34]} 7. Ng5+ {[%emt 0:00:35] C56: Two Knights: 4 d4 exd4 5 0-0 Nxe4.} Ke8 {[%emt 0:01:03]} ({Black should try} 7... Kg8 $17 8. Qxg4 h6 (8... Nxe5 9. Qxd4 Qe7 10. O-O $11)) 8. Qxg4 $15 {[%emt 0:00:07][%cal Og5h7]} Be7 $2 {[%emt 0:01:46]} (8... d6 $1 $15 {keeps the upper hand.} 9. Qf3 (9. e6 Qf6 $17) 9... Nxe5 (9... dxe5 10. Qf7#)) 9. Nxh7 {[%emt 0:07:01] White is better. White is more active.} Nxe5 {[%emt 0:09:06][%mdl 8192]} (9... Kf7 $16 10. Ng5+ Kg8) 10. Qxg7 $18 {[%emt 0:00:12]} Nf7 $146 {[%emt 0:02:12]} (10... Rxh7 11. Qxh7 d6 12. Qg8+ Kd7 13. Qxd8+ Bxd8 14. f4 Nc4 15. b3 Nb6 16. O-O c5 {1-0 Granda Rodriguez,J (1897)-Lemus Lazo,D (1649) San Cristobal de La Laguna rapid op 2024 (5)}) 11. O-O {[%emt 0:01:03][%cal Of1e1] [#] Threatening mate with Re1!.} c6 $2 {[%emt 0:10:44]} (11... d5) 12. Re1 {[%emt 0:01:33][%csl Gg7][%cal Rh7f6] White is clearly winning.} Qa5 {[%emt 0:00:32]} 13. Bd2 {[%emt 0:05:58]} Qc5 {[%emt 0:04:25]} 14. Bg5 {[%emt 0:01:14] White took control after the opening.   Weighted Error Value: White=0.03 (flawless) /Black=1.70  Loses game:     	---       	Black=1      Mistake:       	---       	Black=3      OK:         	White=2     	Black=1      Best:        	White=1     	Black=1} 1-0